bitfinex-derivatives/quotes_SOLF0:USTF0_20250820
["timestamp","ask_amount","ask_price","bid_price","bid_amount"]
[1755686911055,3.02,181.12,181.08,8.64086363]
[1755686911251,3.02,181.12,181.09,3.03]
[1755686911758,3.02,181.2,181.09,3.03]
[1755686912050,3.02,181.18,181.09,3.03]
[1755686912255,5.521,181.13,181.11,8.5515]
[1755686912457,8.541,181.13,181.11,8.5515]
[1755686912757,5.5212,181.12,181.1,5.5217]
[1755686913155,5.5212,181.12,181.1,8.5517]
[1755686913455,3.02,181.13,181.1,8.5517]
[1755686914058,3.02,181.12,181.1,8.5517]
[1755686914261,8.5412,181.12,181.1,8.5517]
[1755686914652,8.5412,181.12,181.1,3.03]
[1755686915360,5.5212,181.12,181.1,3.03]
[1755686915560,5.521,181.13,181.1,5.5217]
[1755686915764,5.521,181.13,181.11,3.03]
[1755686916659,5.521,181.13,181.11,8.5515]
[1755686918463,3.02,181.15,181.11,8.5515]
[1755686918464,5.5212,181.12,181.11,3.03]
[1755686919265,5.5209,181.13,181.12,3.03]
[1755686920463,5.5212,181.12,181.1,5.5217]
[1755686920665,5.5212,181.12,181.11,3.03]
[1755686921365,8.5412,181.12,181.1,5.5217]
[1755686921665,8.5412,181.12,181.1,8.5517]
[1755686922268,8.5412,181.12,181.11,1.56059064]
[1755686926066,3.02,181.18,181.11,4.59059064]
[1755686927268,3.02,181.19,181.1,6.20326097]
[1755686927463,3.02,181.19,181.07,9.28173022]
[1755686927464,3.02,181.17,181.12,4.59059064]
[1755686927660,5.5202,181.16,181.14,1.56059064]
[1755686927961,5.5202,181.16,181.14,4.59059064]
[1755686928366,5.5203,181.15,181.14,3.03]
[1755686928563,8.5403,181.15,181.13,1.56059064]
[1755686928966,8.5403,181.15,181.13,4.59059064]
[1755686930067,5.5203,181.15,181.13,7.08149064]
[1755686930369,5.5203,181.15,181.14,3.03]
[1755686931772,5.5203,181.15,181.13,7.08149064]
[1755686932069,8.5403,181.15,181.13,4.59059064]
[1755686932465,5.5206,181.14,181.13,4.59059064]
[1755686933268,5.5202,181.16,181.14,3.03]
[1755686933463,3.02,181.17,181.14,3.03]
[1755686933668,3.02,181.16,181.14,3.03]
[1755686934172,5.5203,181.15,181.14,3.03]
[1755686938279,5.5203,181.15,181.13,1.56059064]
[1755686938473,8.5003,181.15,181.13,1.56059064]
[1755686938672,5.5203,181.15,181.13,4.66059064]
[1755686939176,5.5203,181.15,181.13,10.18129064]
[1755686939974,8.5003,181.15,181.13,10.18129064]
[1755686940175,8.5003,181.15,181.13,4.66059064]
[1755686940771,2.98,181.18,181.11,7.08189064]
[1755686940982,123.52174799,181.21,181.07,1.56059064]
[1755686940983,2.98,181.14,181.07,1.56059064]
[1755686941179,2.98,181.14,181.08,3.1]
[1755686941472,2.98,181.16,181.11,3.1]
[1755686941680,2.98,181.15,181.12,3.1]
[1755686941869,5.5208,181.14,181.12,3.1]
[1755686942072,2.98,181.15,181.12,3.1]
[1755686942474,2.98,181.15,181.12,8.621]
[1755686942769,2.98,181.15,181.13,3.1]
[1755686942969,8.5004,181.15,181.13,8.6207]
[1755686943580,5.5201,181.16,181.14,3.1]
[1755686943982,8.5001,181.16,181.14,3.1]
[1755686944473,8.5001,181.16,181.14,5.5205]
[1755686944474,5.5201,181.16,181.14,5.5205]
[1755686944673,5.5201,181.16,181.14,8.6205]
[1755686945180,8.5001,181.16,181.14,8.6205]
[1755686948686,8.5001,181.16,181.14,3.1]
[1755686948891,5.5201,181.16,181.13,5.5208]
[1755686949192,8.5003,181.15,181.13,5.5208]
[1755686949386,5.41801656,181.2,181.09,6.20326097]
[1755686949586,5.5211,181.13,181.08,6.20326097]
[1755686949791,2.98,181.12,181.1,5.5216]
[1755686949993,2.98,181.19,181.08,9.30326097]
[1755686950190,2.98,181.17,181.08,3.1]
[1755686950390,2.98,181.15,181.08,3.1]
[1755686950590,5.5217,181.11,181.09,5.522]
[1755686950785,8.5017,181.11,181.09,5.522]
[1755686951687,2.98,181.11,181.09,5.522]
[1755686951889,5.5213,181.12,181.1,8.6218]
[1755686952191,8.5013,181.12,181.1,3.1]
[1755686953999,2.98,181.12,181.1,8.6216]
[1755686957190,5.5215,181.11,181.06,8.64127753]
[1755686957392,2.98,181.19,181.08,3.1]
[1755686957592,2.57271784,181.18,181.08,3.1]
[1755686957894,2.98,181.12,181.1,5.5218]
[1755686958099,2.98,181.12,181.1,8.6218]
[1755686958493,8.5013,181.12,181.1,8.6218]
[1755686958694,8.5013,181.12,181.1,3.1]
[1755686961703,8.5013,181.12,181.1,8.6218]
[1755686962701,8.5013,181.12,181.1,3.1]
[1755686967307,3.05,181.1,181.08,8.4923]
[1755686967504,3.05,181.1,181.08,10.05316225]
[1755686967899,1.56086225,181.13,181.07,1.56086225]
[1755686968101,3.05,181.12,181.06,1.56086225]
[1755686968406,5.5222,181.09,181.06,1.56086225]
[1755686968599,8.5722,181.09,181.07,2.97]
[1755686969703,5.5222,181.09,181.06,7.08366225]
[1755686969908,8.5722,181.09,181.06,10.05366225]
[1755686971605,8.5722,181.09,181.07,5.5227]
[1755686971809,5.5219,181.1,181.08,4.53086225]
[1755686972008,3.05,181.12,181.08,4.53086225]
[1755686972009,3.05,181.12,181.09,2.97]
[1755686973003,8.5713,181.12,181.09,8.492]
[1755686973708,5.5215,181.11,181.09,8.492]
[1755686974312,8.5715,181.11,181.09,8.492]
[1755686974810,3.05,181.11,181.09,8.492]
[1755686975512,5.5213,181.12,181.09,10.05286225]
[1755686975713,8.5713,181.12,181.09,10.05286225]
[1755686976711,8.5713,181.12,181.09,1.56086225]
[1755686976712,3.05,181.12,181.09,1.56086225]
[1755686977010,3.05,181.14,181.11,2.97]
[1755686977215,3.05,181.14,181.11,4.53086225]
[1755686977415,3.05,181.16,181.13,4.53086225]
[1755686977606,3.05,181.16,181.13,2.97]
[1755686977804,3.05,181.16,181.13,4.53086225]
[1755686978005,8.5701,181.16,181.13,10.05156225]
[1755686978510,8.5701,181.16,181.13,8.4907]
[1755686979124,3.05,181.16,181.14,5.5206]
[1755686979323,3.05,181.16,181.14,8.4906]
[1755686979513,3.05,181.19,181.14,2.97]
[1755686979722,5.5193,181.19,181.17,2.97]
[1755686981128,8.5693,181.19,181.13,5.40789728]
[1755686981518,8.5693,181.19,181.16,5.5198]
[1755686981719,8.5693,181.19,181.17,2.97]
[1755686982318,5.5189,181.2,181.18,2.97]
[1755686983020,129.04034799,181.21,181.18,8.4892]
[1755686983216,129.04034799,181.21,181.18,5.5192]
[1755686983420,129.04034799,181.21,181.19,2.97]
[1755686983922,5.5186,181.21,181.19,2.97]
[1755686984527,8.5686,181.21,181.19,2.97]
[1755686984727,8.5688,181.2,181.17,5.5196]
[1755686985130,3.05,181.19,181.14,2.97]
[1755686985427,3.05,181.19,181.16,2.97]
[1755686985628,3.05,181.19,181.17,8.4897]
[1755686986925,5.5186,181.21,181.18,5.5194]
[1755686987130,8.5686,181.21,181.18,8.4894]
[1755686988226,3.05,181.21,181.19,8.489]
[1755686989035,5.5183,181.22,181.2,2.97]
[1755686989335,8.5683,181.22,181.2,2.97]
[1755686989630,3.05,181.21,181.19,5.519]
[1755686990034,3.05,181.21,181.19,8.489]
[1755686990235,8.568,181.23,181.2,8.4888]
[1755686990532,3.05,181.23,181.2,2.97]
[1755686990734,3.05,181.23,181.21,5.5183]
[1755686990930,3.05,181.23,181.21,2.97]
[1755686991528,3.05,181.23,181.21,8.4883]
[1755686994640,3.05,181.22,181.2,5.5187]
[1755686994840,3.05,181.22,181.2,8.4887]
[1755686995431,5.5177,181.24,181.21,5.5185]
[1755686995636,3.01,181.23,181.21,5.5185]
[1755686995841,3.01,181.25,181.17,3.03]
[1755686996532,8.5275,181.25,181.22,3.03]
[1755686996740,3.01,181.24,181.22,3.03]
[1755686996937,5.5175,181.25,181.21,5.5182]
[1755686997143,3.01,181.24,181.21,5.5182]
[1755686997342,8.5276,181.24,181.21,8.5482]
[1755686998044,3.01,181.24,181.22,8.5481]
[1755686999143,3.01,181.25,181.23,8.5478]
[1755687000544,3.01,181.27,181.2,3.03]
[1755687001244,3.01,181.25,181.17,3.03]
[1755687001744,3.01,181.25,181.23,5.5178]
[1755687003641,3.01,181.24,181.22,8.548]
[1755687004249,5.5171,181.26,181.23,5.5179]
[1755687004444,3.01,181.25,181.23,5.5179]
[1755687004745,3.01,181.25,181.23,8.5479]
[1755687005847,3.01,181.25,181.22,5.5181]
[1755687006148,3.01,181.24,181.22,5.5181]
[1755687007137,3.01,181.24,181.22,8.5481]
[1755687008446,134.1,181.31,181.16,2.43789728]
[1755687008447,2.43789728,181.29,181.16,2.43789728]
[1755687008646,3.01,181.23,181.15,3.03]
[1755687008946,5.5187,181.21,181.17,5.5195]
[1755687009150,3.01,181.2,181.17,8.5495]
[1755687009546,3.01,181.2,181.17,3.03]
[1755687009948,3.01,181.28,181.18,3.03]
[1755687010241,3.01,181.28,181.18,4.58942226]
[1755687010445,5.5183,181.22,181.18,10.10852226]
[1755687010647,3.01,181.21,181.18,10.10852226]
[1755687011053,3.01,181.2,181.18,10.10852226]
[1755687011242,5.5187,181.21,181.18,5.5191]
[1755687011443,1.55942226,181.23,181.16,1.55942226]
[1755687011746,3.01,181.22,181.16,1.55942226]
[1755687012051,3.01,181.2,181.17,8.5495]
[1755687012549,3.01,181.26,181.14,3.03]
[1755687012748,5.518,181.23,181.14,3.03]
[1755687013052,5.518,181.23,181.2,5.5187]
[1755687013349,3.01,181.22,181.2,8.5487]
[1755687013858,3.01,181.22,181.2,3.03]
[1755687014152,5.518,181.23,181.14,3.03]
[1755687014347,5.518,181.23,181.19,5.5189]
[1755687014548,8.528,181.23,181.19,3.03]
[1755687014748,5.518,181.23,181.19,3.03]
[1755687014949,8.528,181.23,181.19,3.03]
[1755687015253,8.528,181.23,181.2,3.03]
[1755687016452,3.01,181.23,181.2,3.03]
[1755687016650,3.01,181.23,181.17,3.03]
[1755687017451,3.01,181.23,181.2,8.5486]
[1755687017960,8.5279,181.23,181.2,8.5486]
[1755687019162,8.5279,181.23,181.2,3.03]
[1755687025163,8.5279,181.23,181.2,5.5187]
[1755687025358,8.5279,181.23,181.21,3.03]
[1755687026262,3.01,181.23,181.21,3.03]
[1755687026457,117.14630604,181.29,181.22,5.5182]
[1755687026763,5.5167,181.27,181.19,2.43692507]
[1755687027066,8.5367,181.27,181.25,2.93]
[1755687027470,3.02,181.27,181.25,2.93]
[1755687028854,8.5364,181.28,181.25,8.4472]
[1755687031167,8.5364,181.28,181.26,2.93]
[1755687032171,3.02,181.28,181.26,2.93]
[1755687032665,5.5161,181.29,181.25,5.5172]
[1755687032876,8.5361,181.29,181.27,2.93]
[1755687033372,3.02,181.28,181.25,8.4471]
[1755687034477,137.1,181.3,181.27,2.93]
[1755687034669,3.02,181.28,181.26,1.55812582]
[1755687035273,3.02,181.28,181.26,4.48812582]
[1755687035466,134.08,181.3,181.27,2.93]
[1755687035467,137.1,181.3,181.27,2.93]
[1755687035869,3.02,181.35,181.28,4.48812582]
[1755687036071,3.02,181.33,181.28,4.48812582]
[1755687036274,3.02,181.34,181.28,1.55812582]
[1755687037972,3.02,181.34,181.26,1.55812582]
[1755687038164,3.02,181.32,181.25,5.5172]
[1755687038369,3.02,181.32,181.25,1.55812582]
[1755687038775,4.57812582,181.32,181.24,4.48812582]
[1755687038978,3.02,181.31,181.22,2.93]
[1755687039177,3.02,181.29,181.23,1.55812582]
[1755687040274,3.02,181.29,181.22,2.93]
[1755687040576,3.02,181.29,181.22,8.4482]
[1755687042376,3.02,181.29,181.23,5.5178]
[1755687042580,5.5165,181.28,181.22,2.93]
[1755687042781,5.5165,181.28,181.2,2.43538197]
[1755687043076,8.5365,181.28,181.25,2.93]
[1755687043374,5.5167,181.27,181.25,2.93]
[1755687043577,8.5367,181.27,181.25,2.93]
[1755687044078,3.02,181.26,181.23,8.4478]
[1755687044278,5.5171,181.26,181.23,2.93]
[1755687044580,3.02,181.25,181.23,2.93]
[1755687045080,3.02,181.24,181.21,2.93]
[1755687045276,3.02,181.24,181.21,8.4485]
[1755687045476,3.02,181.24,181.22,2.93]
[1755687045674,5.5175,181.25,181.22,2.93]
[1755687045875,8.5375,181.25,181.22,2.93]
[1755687046977,8.5375,181.25,181.22,5.518]
[1755687047276,8.5375,181.25,181.22,8.448]
[1755687048273,3.02,181.23,181.17,2.43538197]
[1755687048573,3.02,181.22,181.19,2.93]
[1755687049177,8.5382,181.22,181.19,8.4489]
[1755687050584,8.5382,181.22,181.2,2.93]
[1755687050982,8.5382,181.22,181.2,8.4488]
[1755687051185,5.518,181.23,181.21,2.93]
[1755687052187,5.5177,181.24,181.21,8.4485]
[1755687052388,8.5377,181.24,181.21,8.4485]
[1755687053889,8.5377,181.24,181.21,2.93]
[1755687054588,8.5377,181.24,181.21,8.4485]
[1755687054790,3.02,181.28,181.22,2.93]
[1755687055395,3.02,181.28,181.23,5.5177]
[1755687055595,3.05,181.27,181.24,2.93]
[1755687056291,3.05,181.27,181.25,2.93]
[1755687056493,8.5668,181.27,181.25,2.93]
[1755687056691,134.0,181.31,181.2,2.43538197]
[1755687056891,5.61323982,181.3,181.21,2.93]
[1755687057094,8.5672,181.26,181.23,5.5179]
[1755687057296,8.5672,181.26,181.23,8.4479]
[1755687058099,8.5673,181.25,181.22,5.5181]
[1755687058297,8.5673,181.25,181.22,8.4481]
[1755687058497,134.0,181.31,181.2,2.43538197]
[1755687058796,2.5635126,181.3,181.21,2.93]
[1755687058999,3.05,181.29,181.21,2.93]
[1755687059297,3.05,181.3,181.23,2.93]
[1755687060098,5.5175,181.25,181.23,2.93]
[1755687060297,3.05,181.3,181.18,2.43538197]
[1755687060503,3.05,181.28,181.17,2.93]
[1755687060802,3.05,181.26,181.17,2.93]
[1755687060991,2.56273679,181.25,181.17,2.93]
[1755687061296,3.05,181.24,181.17,2.93]
[1755687062291,5.519,181.2,181.17,2.93]
[1755687062497,5.519,181.2,181.18,2.93]
[1755687062998,5.5186,181.21,181.17,5.5196]
[1755687063200,5.5186,181.21,181.19,2.93]
[1755687063503,5.5186,181.21,181.2,2.93]
[1755687064197,5.5188,181.2,181.18,2.93]
[1755687064403,3.05,181.27,181.16,2.43538197]
[1755687064599,2.43538197,181.28,181.16,2.43538197]
[1755687064600,3.05,181.25,181.16,2.43538197]
[1755687064898,3.05,181.25,181.17,2.93]
[1755687065903,3.05,181.25,181.2,2.93]
[1755687066196,3.05,181.28,181.2,2.93]
[1755687066393,3.05,181.28,181.22,5.5182]
[1755687066594,3.05,181.28,181.22,8.4482]
[1755687067003,134.06,181.31,181.23,5.5178]
[1755687067201,3.05,181.27,181.24,2.93]
[1755687068396,3.05,181.27,181.24,5.5175]
[1755687068700,134.06,181.31,181.24,5.5175]
[1755687068701,3.05,181.29,181.25,2.93]
[1755687069201,3.05,181.29,181.25,8.4473]
[1755687069603,3.05,181.29,181.26,2.93]
[1755687071300,134.06,181.31,181.26,2.93]
[1755687071498,3.05,181.28,181.25,5.5173]
[1755687071695,3.05,181.28,181.25,2.93]
[1755687071894,3.05,181.3,181.22,5.36538197]
[1755687072496,2.56110392,181.29,181.19,2.43538197]
[1755687072700,5.61110392,181.28,181.19,2.43538197]
[1755687072897,3.05,181.27,181.2,5.5185]
[1755687073405,5.5177,181.24,181.21,8.4484]
[1755687073606,5.5177,181.24,181.22,2.93]
[1755687081608,5.5179,181.23,181.22,2.93]
[1755687081806,5.5179,181.23,181.2,2.93]
[1755687082010,5.5179,181.23,181.21,2.93]
[1755687084112,8.5682,181.22,181.19,8.449]
[1755687084312,3.05,181.21,181.16,2.93]
[1755687084610,3.05,181.28,181.16,2.93]
[1755687084806,5.519,181.2,181.16,5.5199]
[1755687085010,8.569,181.2,181.17,2.93]
[1755687085212,5.5192,181.19,181.17,2.93]
[1755687085515,8.5692,181.19,181.16,8.4499]
[1755687085713,8.5692,181.19,181.16,5.5199]
[1755687085909,5.5192,181.19,181.16,5.5199]
[1755687086110,3.02,181.21,181.15,5.36538197]
[1755687086916,5.5199,181.17,181.15,5.36538197]
[1755687087216,3.02,181.24,181.13,2.93]
[1755687087412,5.5203,181.15,181.13,2.93]
[1755687087612,5.5203,181.15,181.14,2.93]
[1755687089412,11.0347,181.25,181.14,2.93]
[1755687089413,5.5201,181.16,181.14,2.93]
[1755687090317,2.43538197,181.23,181.12,2.93]
[1755687090521,3.02,181.14,181.12,2.93]
[1755687090721,3.02,181.13,181.1,5.36538197]
[1755687091119,8.5411,181.13,181.1,10.88708197]
[1755687091518,3.02,181.11,181.07,11.56864294]
[1755687091713,3.02,181.11,181.08,2.93]
[1755687091920,3.02,181.19,181.08,2.93]
[1755687092221,8.5419,181.1,181.08,2.93]
[1755687093320,3.02,181.12,181.08,2.93]
[1755687093525,3.02,181.12,181.09,2.93]
[1755687093727,8.5413,181.12,181.09,2.93]
[1755687094426,5.521,181.13,181.1,2.93]
[1755687094718,5.521,181.13,181.11,2.93]
[1755687097027,5.521,181.13,181.09,5.522]
[1755687097234,5.5213,181.12,181.1,2.93]
[1755687098429,8.5411,181.13,181.1,2.93]
[1755687099323,3.02,181.23,181.11,2.93]
[1755687099522,3.02,181.23,181.13,5.36538197]
[1755687100026,3.02,181.23,181.13,2.43538197]
[1755687100325,3.02,181.21,181.1,7.95718197]
[1755687101430,3.02,181.21,181.11,2.93]
[1755687105234,3.02,181.21,181.11,8.4515]
[1755687107235,5.5204,181.15,181.11,8.4515]
[1755687107431,3.02,181.22,181.13,2.43538197]
[1755687107640,3.02,181.22,181.14,2.93]
[1755687107832,5.5198,181.17,181.15,2.93]
[1755687108029,3.02,181.23,181.13,2.43538197]
[1755687108630,3.02,181.23,181.12,2.43538197]
[1755687109537,370.82,181.24,181.12,2.43538197]
[1755687109538,5.5208,181.14,181.13,2.93]
[1755687114842,8.5408,181.14,181.12,2.43538197]
[1755687115243,5.521,181.13,181.12,2.43538197]
[1755687116545,5.521,181.13,181.12,5.45538197]
[1755687119240,5.5208,181.14,181.12,5.45538197]
[1755687120235,5.521,181.13,181.12,5.45538197]
[1755687121046,5.5208,181.14,181.12,5.45538197]
[1755687121243,2.95,181.22,181.09,10.97738197]
[1755687121546,8.4711,181.13,181.1,3.02]
[1755687122243,5.5208,181.14,181.11,3.02]
[1755687122447,8.4708,181.14,181.11,3.02]
[1755687123444,5.5205,181.15,181.12,3.02]
[1755687123646,5.5205,181.15,181.13,3.02]
[1755687125542,8.4705,181.15,181.13,3.02]
[1755687126147,5.5201,181.16,181.14,3.02]
[1755687126543,8.4701,181.16,181.14,3.02]
[1755687127246,5.5203,181.15,181.14,3.02]
[1755687127448,5.5203,181.15,181.12,5.5212]
[1755687127746,5.5203,181.15,181.13,3.02]
[1755687128442,5.5203,181.15,181.11,5.5214]
[1755687128649,8.4707,181.14,181.11,8.5414]
[1755687130250,5.5207,181.14,181.12,3.02]
[1755687130746,8.4704,181.15,181.12,3.02]
[1755687130946,8.4704,181.15,181.13,3.02]
[1755687132252,5.5204,181.15,181.12,5.5212]
[1755687132645,5.5204,181.15,181.14,3.02]
[1755687133252,5.5202,181.16,181.14,3.02]
[1755687133754,8.4702,181.16,181.14,3.02]
[1755687134255,8.4702,181.16,181.14,4.58011752]
[1755687134648,5.5202,181.16,181.14,4.58011752]
[1755687136856,8.4702,181.16,181.14,4.58011752]
[1755687137456,8.4702,181.16,181.14,1.56011752]
[1755687139558,2.95,181.19,181.15,3.02]
[1755687139753,2.95,181.19,181.16,4.58011752]
[1755687140256,2.95,181.19,181.16,3.02]
[1755687140960,5.5195,181.18,181.16,3.02]
[1755687142762,5.5197,181.17,181.14,2.43708632]
[1755687142958,5.5197,181.17,181.15,3.02]
[1755687143558,8.4701,181.16,181.14,5.45708632]
[1755687145460,8.4701,181.16,181.14,3.02]
[1755687148966,2.95,181.16,181.14,3.02]
[1755687151868,8.4703,181.16,181.13,5.5208]
[1755687152065,8.5403,181.16,181.13,8.4208]
[1755687152264,3.02,181.15,181.13,5.5208]
[1755687152461,3.02,181.15,181.12,8.4212]
[1755687152661,3.02,181.15,181.13,2.9]
[1755687153466,3.02,181.15,181.13,8.421]
[1755687155372,5.5199,181.17,181.13,8.421]
[1755687155569,3.02,181.16,181.13,8.421]
[1755687155962,3.02,181.16,181.14,2.9]
[1755687159475,3.02,181.16,181.14,8.4207]
[1755687159772,5.5199,181.17,181.14,5.5207]
[1755687159974,8.5399,181.17,181.15,2.9]
[1755687160368,8.5399,181.17,181.15,4.46003635]
[1755687160569,3.02,181.17,181.15,9.98043635]
[1755687161772,5.5193,181.19,181.16,5.5201]
[1755687161976,8.5393,181.19,181.17,4.46003635]
[1755687163272,3.02,181.18,181.17,1.56003635]
[1755687165179,3.02,181.19,181.17,4.46003635]
[1755687166073,3.02,181.18,181.17,1.56003635]
[1755687166571,3.02,181.18,181.15,5.5203]
[1755687166774,8.5395,181.18,181.17,1.56003635]
[1755687166982,8.5395,181.18,181.15,2.9]
[1755687167183,4.58003635,181.22,181.15,1.56003635]
[1755687167378,2.57061421,181.21,181.15,1.56003635]
[1755687167680,3.02,181.2,181.15,1.56003635]
[1755687167874,2.57061421,181.19,181.15,1.56003635]
[1755687168079,3.02,181.17,181.15,1.56003635]
[1755687168272,3.02,181.17,181.15,4.46003635]
[1755687170583,8.5397,181.18,181.16,2.9]
[1755687171283,5.5198,181.17,181.16,2.9]
[1755687171488,5.5198,181.17,181.15,1.56003635]
[1755687171780,5.5198,181.17,181.15,4.46003635]
[1755687173085,8.5396,181.18,181.15,4.46003635]
[1755687175086,8.5398,181.17,181.15,4.46003635]
[1755687175684,8.5398,181.17,181.15,1.56003635]
[1755687175884,8.5601,181.16,181.15,1.56003635]
[1755687180191,5.5201,181.16,181.15,4.52003635]
[1755687182392,8.5601,181.16,181.15,1.56003635]
[1755687183195,5.5201,181.16,181.15,4.52003635]
[1755687183591,5.5199,181.17,181.15,4.52003635]
[1755687184897,8.5599,181.17,181.15,4.52003635]
[1755687187599,3.04,181.16,181.15,4.52003635]
[1755687187900,8.5601,181.16,181.15,1.56003635]
[1755687191804,5.5201,181.16,181.15,1.56003635]
[1755687191999,5.5201,181.16,181.15,4.52003635]
[1755687192804,8.5601,181.16,181.15,4.52003635]
[1755687198407,8.5601,181.16,181.15,1.56003635]
[1755687205314,8.5601,181.16,181.14,1.56003635]
[1755687205510,8.5601,181.16,181.14,4.52003635]
[1755687206207,8.6305,181.15,181.12,5.5213]
[1755687206514,3.11,181.15,181.13,4.54003635]
[1755687209213,8.6306,181.15,181.13,4.54003635]
[1755687212119,8.6306,181.15,181.13,1.56003635]
[1755687212315,8.6306,181.15,181.13,4.54003635]
[1755687212617,8.6306,181.15,181.13,2.98]
[1755687212818,8.6306,181.15,181.14,1.56003635]
[1755687215920,8.6306,181.15,181.13,1.56003635]
[1755687216121,8.6306,181.15,181.13,4.54003635]
[1755687216309,5.5208,181.14,181.13,1.56003635]
[1755687216511,3.11,181.12,181.09,7.76329732]
[1755687216817,3.11,181.11,181.09,10.74329732]
[1755687217120,8.6319,181.11,181.09,4.54003635]
[1755687217314,1.56003635,181.17,181.07,1.56003635]
[1755687217315,3.11,181.13,181.07,1.56003635]
[1755687217916,3.11,181.12,181.05,6.20326097]
[1755687218115,3.11,181.12,181.05,1.56003635]
[1755687218321,3.11,181.12,181.05,7.08353635]
[1755687223824,3.11,181.12,181.05,1.56003635]
[1755687225624,5.5228,181.08,181.05,1.56003635]
[1755687225829,8.6328,181.08,181.05,1.56003635]
[1755687226025,8.6328,181.08,181.06,2.98]
[1755687228226,5.5224,181.09,181.07,2.98]
[1755687228418,3.11,181.12,181.08,2.98]
[1755687228624,5.522,181.1,181.09,2.98]
[1755687230333,5.5224,181.09,181.07,4.54003635]
[1755687230533,5.5224,181.09,181.08,2.98]
[1755687233726,8.6324,181.09,181.07,1.56003635]
[1755687233936,8.6324,181.09,181.07,4.54003635]
[1755687235135,5.5224,181.09,181.07,1.56003635]
[1755687235334,3.11,181.15,181.08,2.98]
[1755687235533,3.11,181.15,181.09,1.56003635]
[1755687236037,5.5219,181.11,181.1,3.0]
[1755687241944,5.522,181.1,181.09,1.56003635]
[1755687242136,5.522,181.1,181.09,4.56003635]
[1755687243537,1.56003635,181.14,181.05,3.0]
[1755687243734,2.97,181.13,181.06,1.56003635]
[1755687245337,2.97,181.13,181.07,3.0]
[1755687245936,5.5223,181.1,181.06,7.08323635]
[1755687246137,5.5223,181.1,181.08,3.0]
[1755687246333,5.5223,181.1,181.09,3.0]
[1755687248243,5.5223,181.1,181.06,7.08323635]
[1755687248442,8.4923,181.1,181.07,3.0]
[1755687248946,2.97,181.09,181.07,3.0]
[1755687249142,5.5223,181.1,181.06,7.08323635]
[1755687249342,8.4923,181.1,181.08,3.0]
[1755687249842,5.5223,181.09,181.08,3.0]
[1755687250043,2.97,181.1,181.08,3.0]
[1755687250739,8.4923,181.1,181.08,3.0]
[1755687251437,5.5223,181.1,181.06,7.08323635]
[1755687251641,5.5223,181.1,181.08,1.56003635]
[1755687251838,2.97,181.14,181.1,3.0]
[1755687252040,2.97,181.13,181.1,4.56003635]
[1755687252744,5.5217,181.11,181.1,4.56003635]
[1755687252942,5.5217,181.11,181.1,1.56003635]
[1755687253749,8.4917,181.11,181.1,1.56003635]
[1755687254850,5.522,181.1,181.08,4.56003635]
[1755687255052,2.97,181.1,181.08,1.56003635]